bitfinex/quotes_SOLUSD_20240829
["timestamp","ask_amount","ask_price","bid_price","bid_amount"]
[1724951134635,0.59374468,144.81,144.77,17.2682]
[1724951134832,0.59374468,144.81,144.79,6.9064]
[1724951135434,32.1015066,144.82,144.79,6.9064]
[1724951136351,0.59374468,144.81,144.78,6.9066]
[1724951139634,39.0076066,144.8,144.76,6.9078]
[1724951139840,39.0076066,144.8,144.71,21.4546]
[1724951139841,0.59374468,144.8,144.78,6.907]
[1724951140341,32.1015066,144.81,144.78,6.907]
[1724951140556,32.69525128,144.81,144.78,6.907]
[1724951140758,39.0062066,144.83,144.79,6.9065]
[1724951140958,0.59374468,144.82,144.79,6.9065]
[1724951141460,0.59374468,144.82,144.8,6.906]
[1724951141662,32.1015066,144.83,144.79,17.2658]
[1724951142159,32.1015066,144.83,144.81,6.9056]
[1724951142661,0.59374468,144.82,144.81,6.9056]
[1724951143436,0.59374468,144.82,144.8,6.9059]
[1724951145964,0.59374468,144.82,144.79,17.2658]
[1724951146471,32.1015066,144.83,144.79,17.2658]
[1724951146472,32.1015066,144.83,144.8,6.9057]
[1724951146955,0.59374468,144.82,144.8,6.9057]
[1724951149667,0.59374468,144.82,144.79,17.2658]
[1724951149839,32.1015066,144.81,144.77,21.4546]
[1724951150165,0.59374468,144.8,144.79,6.9065]
[1724951150470,39.0062066,144.83,144.79,6.9065]
[1724951150646,0.59374468,144.82,144.79,6.9065]
[1724951152266,13.44624636,144.82,144.79,6.9065]
[1724951152473,13.44624636,144.82,144.8,6.9059]
[1724951152760,0.59374468,144.81,144.8,6.9059]
[1724951154351,0.59374468,144.81,144.77,6.9071]
[1724951154537,12.85250168,144.78,144.77,6.9071]
[1724951155045,6.9079,144.76,144.73,21.8688]
[1724951155248,12.85250168,144.74,144.72,17.2738]
[1724951155469,12.85250168,144.74,144.73,6.9094]
[1724951155852,12.85250168,144.74,144.72,24.1835]
[1724951156047,12.85250168,144.74,144.72,17.2738]
[1724951156262,12.85250168,144.74,144.69,21.8688]
[1724951156263,0.59374468,144.73,144.7,6.9107]
[1724951156458,12.85250168,144.72,144.7,6.9107]
[1724951156955,12.85250168,144.72,144.69,39.1464]
[1724951157266,12.85250168,144.72,144.69,46.0576]
[1724951157569,12.85250168,144.72,144.7,6.9108]
[1724951158069,32.76733629,144.73,144.69,39.1464]
[1724951158951,32.76733629,144.73,144.7,6.9108]
[1724951160456,32.76733629,144.73,144.71,6.9103]
[1724951160789,32.17359161,144.73,144.71,6.9103]
[1724951160952,32.76733629,144.75,144.72,6.9098]
[1724951162885,32.76733629,144.75,144.71,24.1855]
[1724951163691,32.76733629,144.75,144.72,6.9098]
[1724951164979,39.67593629,144.75,144.71,6.9102]
[1724951165986,32.76733629,144.75,144.72,6.9098]
[1724951166392,0.59374468,144.75,144.73,6.9089]
[1724951166685,0.59374468,144.76,144.73,6.9089]
[1724951167586,0.59374468,144.76,144.75,17.2711]
[1724951168372,0.59374468,144.76,144.74,6.9088]
[1724951168892,0.59374468,144.76,144.74,24.1804]
[1724951169070,0.59374468,144.76,144.74,17.2716]
[1724951169870,0.59374468,144.76,144.73,6.909]
[1724951171299,32.17359161,144.75,144.72,6.9097]
[1724951171497,0.59374468,144.74,144.72,6.9097]
[1724951172194,0.59374468,144.74,144.73,6.9094]
[1724951172389,32.17359161,144.75,144.73,6.9094]
[1724951172575,39.08119161,144.77,144.73,6.9094]
[1724951172769,32.17359161,144.77,144.74,6.9085]
[1724951172990,32.17359161,144.79,144.77,6.907]
[1724951173178,0.59374468,144.78,144.76,17.2699]
[1724951174389,0.59374468,144.78,144.76,24.1776]
[1724951174590,32.17359161,144.79,144.77,6.9075]
[1724951174976,0.59374468,144.8,144.78,6.9069]
[1724951175178,32.76733629,144.81,144.79,6.9065]
[1724951175688,32.76733629,144.81,144.78,24.1741]
[1724951176072,0.59374468,144.81,144.78,17.2672]
[1724951176409,0.59374468,144.82,144.79,6.9062]
[1724951176600,0.59374468,144.82,144.78,17.2672]
[1724951176601,0.59374468,144.82,144.8,6.9059]
[1724951177092,0.59374468,144.82,144.8,24.1707]
[1724951177400,32.17359161,144.81,144.78,6.9068]
[1724951177585,0.59374468,144.8,144.78,6.9068]
[1724951177783,32.17359161,144.81,144.79,6.9065]
[1724951177983,12.85243959,144.81,144.8,6.906]
[1724951179405,13.44618427,144.83,144.8,6.906]
[1724951179995,13.44618427,144.83,144.79,17.266]
[1724951179996,12.85243959,144.81,144.79,24.1724]
[1724951180196,12.85243959,144.81,144.79,17.266]
[1724951180394,0.59374468,144.8,144.79,17.266]
[1724951181301,12.85243959,144.81,144.79,17.266]
[1724951181504,13.44618427,144.83,144.79,17.266]
[1724951181705,12.85243959,144.83,144.8,1.13080895]
[1724951182003,39.61708756,144.85,144.81,6.9052]
[1724951182205,32.71338756,144.85,144.82,6.9051]
[1724951182795,32.71338756,144.85,144.81,17.2638]
[1724951182796,32.71338756,144.85,144.83,6.9046]
[1724951184203,32.71338756,144.85,144.82,6.9049]
[1724951184411,32.71338756,144.85,144.82,6.905]
[1724951187103,32.71338756,144.85,144.81,17.2638]
[1724951187104,39.61708756,144.85,144.81,24.1692]
[1724951188323,45.0,144.84,144.81,17.2638]
[1724951188488,0.59374468,144.83,144.81,17.2638]
[1724951189003,39.02234288,144.87,144.82,6.9051]
[1724951189312,0.59374468,144.86,144.82,6.9051]
[1724951189492,32.11964288,144.85,144.82,6.9051]
[1724951189683,0.59374468,144.84,144.82,6.9051]
[1724951190222,32.11964288,144.85,144.83,6.9046]
[1724951193093,0.59374468,144.84,144.81,17.2638]
[1724951193408,0.59374468,144.84,144.81,24.169]
[1724951193782,0.59374468,144.84,144.81,17.2638]
[1724951195403,0.59374468,144.84,144.82,6.905]
[1724951195706,0.59374468,144.84,144.8,16.4665]
[1724951196021,32.11964288,144.81,144.78,24.1743]
[1724951196218,0.59374468,144.8,144.79,6.9065]
[1724951198115,0.59374468,144.8,144.78,24.1742]
[1724951199623,32.11964288,144.79,144.76,28.3922]
[1724951199805,0.59374468,144.78,144.76,6.9078]
[1724951200796,32.11964288,144.77,144.74,6.9087]
[1724951201101,32.11964288,144.75,144.72,17.2739]
[1724951201427,0.59374468,144.74,144.72,24.1837]
[1724951202001,13.45878609,144.74,144.72,24.1837]
[1724951202201,0.59374468,144.73,144.72,24.1837]
[1724951203926,12.86504141,144.74,144.72,24.1837]
[1724951203927,13.45878609,144.74,144.72,24.1837]
[1724951204222,0.59374468,144.75,144.73,6.9094]
[1724951205331,32.75477413,144.75,144.72,24.1836]
[1724951205522,32.16102945,144.73,144.72,17.2739]
[1724951205734,77.16102945,144.73,144.69,17.2775]
[1724951206023,32.16102945,144.7,144.66,24.1937]
[1724951206201,0.59374468,144.69,144.67,6.9121]
[1724951207409,0.59374468,144.69,144.65,16.6481]
[1724951207610,32.16102945,144.66,144.61,16.4557]
[1724951207821,32.16102945,144.64,144.61,23.3704]
[1724951208012,0.59374468,144.63,144.61,23.3704]
[1724951209022,0.59374468,144.63,144.62,6.9146]
[1724951209223,32.16102945,144.66,144.63,6.9139]
[1724951209534,0.59374468,144.65,144.63,6.9139]
[1724951210926,0.59374468,144.65,144.62,17.286]
[1724951211122,32.16102945,144.64,144.62,24.2002]
[1724951211429,0.59374468,144.63,144.6,6.5483]
[1724951211632,0.59374468,144.63,144.59,17.2898]
[1724951212005,0.59374468,144.63,144.61,6.9147]
[1724951212615,45.59374468,144.63,144.59,24.2059]
[1724951212820,45.59374468,144.63,144.55,17.2939]
[1724951212821,32.41200945,144.62,144.55,17.2939]
[1724951213016,0.59374468,144.61,144.58,6.9161]
[1724951213323,32.16102945,144.59,144.55,6.9179]
[1724951213510,0.59374468,144.58,144.55,6.9179]
[1724951213711,0.59374468,144.58,144.56,6.9175]
[1724951214730,0.59374468,144.58,144.57,6.917]
[1724951219422,32.75477413,144.59,144.57,6.917]
[1724951219636,0.59374468,144.58,144.57,6.917]
[1724951219852,32.16102945,144.59,144.57,6.917]
[1724951220137,32.16102945,144.59,144.58,6.9165]
[1724951220622,32.75477413,144.61,144.56,17.2931]
[1724951220814,0.59374468,144.62,144.58,22.9781]
[1724951221022,0.59374468,144.62,144.61,24.2029]
[1724951221235,0.59374468,144.62,144.61,17.2878]
[1724951222423,0.59374468,144.62,144.61,24.2029]
[1724951223618,32.16102945,144.63,144.58,40.2688]
[1724951223924,45.71923468,144.62,144.58,17.2907]
[1724951224144,45.59374468,144.62,144.58,17.2907]
[1724951224341,0.59374468,144.62,144.59,6.9156]
[1724951224645,0.59374468,144.62,144.6,6.9155]
[1724951224939,0.59374468,144.62,144.61,24.2029]
[1724951225166,32.16102945,144.65,144.61,24.2029]
[1724951225642,0.59374468,144.64,144.61,17.2878]
[1724951225859,0.59374468,144.64,144.62,6.9145]
[1724951226331,0.59374468,144.64,144.61,17.2878]
[1724951226332,0.59374468,144.64,144.61,24.2028]
[1724951229547,0.59374468,144.64,144.62,6.9142]
[1724951230131,0.59374468,144.64,144.61,17.2878]
[1724951230132,32.16102945,144.67,144.63,6.9141]
[1724951230450,0.59374468,144.67,144.64,6.9135]
[1724951230624,0.59374468,144.67,144.65,6.9131]
[1724951231727,0.59374468,144.67,144.64,6.9135]
[1724951232145,0.59374468,144.68,144.65,6.9131]
[1724951235046,0.59374468,144.68,144.64,6.9135]
[1724951235238,0.59374468,144.68,144.65,6.9131]
[1724951239537,32.16102945,144.67,144.63,24.1989]
[1724951239856,0.59374468,144.66,144.6,39.3161]
[1724951240044,32.16102945,144.65,144.6,39.3161]
[1724951240240,0.59374468,144.64,144.61,6.9147]
[1724951240454,0.59374468,144.64,144.63,6.9138]
[1724951240666,0.59374468,144.65,144.63,6.9138]
[1724951242649,0.59374468,144.65,144.62,17.2864]
[1724951242650,7.50694468,144.65,144.62,24.2008]
[1724951242851,45.59374468,144.64,144.6,28.9432]
[1724951243048,45.59374468,144.64,144.6,22.0278]
[1724951243262,52.50754468,144.64,144.6,28.943]
[1724951243434,52.50754468,144.64,144.6,22.6371]
[1724951244551,45.59374468,144.64,144.59,17.2895]
[1724951244756,32.41200945,144.63,144.59,17.2895]
[1724951245056,0.59374468,144.62,144.59,17.2895]
[1724951246257,0.59374468,144.62,144.59,24.2055]
[1724951246438,0.59374468,144.62,144.59,17.2895]
[1724951246954,0.59374468,144.63,144.59,17.2895]
[1724951247159,0.59374468,144.63,144.61,6.9151]
[1724951247658,0.59374468,144.63,144.59,17.2895]
[1724951247957,0.59374468,144.63,144.59,24.2052]
[1724951248555,7.50794468,144.63,144.59,24.2052]
[1724951248753,45.0,144.62,144.59,24.2052]
[1724951248953,0.59374468,144.61,144.59,24.2052]
[1724951250649,7.50894468,144.61,144.57,6.917]
[1724951250854,45.59374468,144.6,144.57,6.917]
[1724951251836,52.50944468,144.6,144.56,40.6713]
[1724951252156,52.50944468,144.6,144.56,24.2106]
[1724951252647,45.59374468,144.6,144.57,6.917]
[1724951252840,45.59374468,144.6,144.54,6.5776]
[1724951252841,7.04159,144.59,144.54,6.5776]
[1724951253041,45.59374468,144.58,144.54,6.5776]
[1724951253245,0.59374468,144.57,144.53,33.3331]
[1724951253442,0.59374468,144.57,144.53,6.9189]
[1724951253851,7.51084468,144.57,144.53,6.9189]
[1724951254862,0.59374468,144.57,144.53,6.9189]
[1724951256365,0.59374468,144.57,144.54,6.9181]
[1724951256546,0.59374468,144.58,144.56,6.9175]
[1724951256746,0.59374468,144.6,144.58,6.9164]
[1724951256962,0.59374468,144.6,144.57,6.9169]
[1724951257752,0.59374468,144.61,144.57,6.9169]
[1724951258059,0.59374468,144.61,144.58,17.2904]
[1724951259576,45.59374468,144.61,144.58,17.2904]
[1724951259768,0.59374468,144.6,144.59,6.9161]
[1724951259971,0.59374468,144.6,144.58,24.2066]
[1724951260269,0.59374468,144.61,144.6,6.9152]
[1724951260567,39.07452945,144.65,144.6,6.9152]
[1724951260568,20.59374468,144.64,144.6,6.9152]
[1724951260943,27.50754468,144.64,144.6,6.9152]
[1724951261360,20.59374468,144.64,144.61,6.9149]
[1724951261544,0.59374468,144.64,144.61,6.9149]
[1724951261755,0.59374468,144.64,144.6,24.2037]
[1724951262445,39.07512945,144.63,144.59,6.9159]
[1724951262763,0.59374468,144.62,144.59,6.9159]
[1724951263153,45.59374468,144.62,144.59,6.9159]
[1724951263744,45.59374468,144.62,144.58,6.9164]
[1724951265246,45.59374468,144.62,144.57,24.209]
[1724951265247,52.50854468,144.62,144.57,24.209]
[1724951265447,6.9151,144.61,144.57,24.209]
[1724951265670,0.59374468,144.6,144.57,24.209]
[1724951267047,45.59374468,144.6,144.57,24.209]
[1724951267248,0.59374468,144.6,144.58,6.9165]
[1724951267450,45.59374468,144.61,144.58,6.9165]
[1724951267647,0.59374468,144.6,144.58,6.9165]
[1724951268953,45.0,144.61,144.59,6.9161]
[1724951269155,0.59374468,144.6,144.59,6.9161]
[1724951269364,45.0,144.62,144.59,6.9161]
[1724951269866,45.0,144.62,144.57,24.2087]
[1724951270275,0.59374468,144.61,144.57,24.2087]
[1724951270576,7.50904468,144.61,144.57,24.2087]
[1724951270784,45.0,144.6,144.57,24.2087]
[1724951270962,0.59374468,144.59,144.57,24.2087]
[1724951271350,0.59374468,144.59,144.57,17.2921]
[1724951271876,7.0395,144.58,144.48,34.6048]
[1724951272083,7.0395,144.58,144.51,17.2994]
[1724951272084,39.07932945,144.55,144.51,17.2994]
[1724951272369,7.29048,144.58,144.46,66.77182945]
[1724951272370,0.59374468,144.54,144.46,66.77182945]
[1724951272582,20.59374468,144.57,144.47,9.13520518]
[1724951272784,51.9175,144.56,144.51,6.9197]
[1724951273071,26.918,144.55,144.5,17.3002]
[1724951273373,0.59374468,144.54,144.51,6.9195]
[1724951274247,45.59374468,144.54,144.51,6.9198]
[1724951279189,0.59374468,144.54,144.53,6.9189]
[1724951279487,20.59374468,144.56,144.55,6.918]
[1724951279674,0.59374468,144.58,144.55,6.918]
[1724951279877,0.59374468,144.58,144.54,24.2141]
[1724951280587,7.51034468,144.58,144.54,24.2141]
[1724951280779,0.59374468,144.57,144.54,24.2141]
[1724951281285,45.59374468,144.57,144.54,24.2141]
[1724951283062,77.75477413,144.57,144.52,6.919]
[1724951283371,0.84472468,144.56,144.52,6.919]
[1724951284182,7.76222468,144.56,144.52,6.919]
[1724951284389,45.0,144.55,144.52,6.919]
[1724951284562,0.59374468,144.54,144.52,6.919]
[1724951285290,0.59374468,144.54,144.53,6.9189]
[1724951286888,0.59374468,144.54,144.52,6.9192]
[1724951287189,0.59374468,144.54,144.51,24.2191]
[1724951288563,7.51254468,144.54,144.5,6.9202]
[1724951288768,45.12549,144.53,144.48,17.3023]
[1724951289077,39.08102945,144.51,144.46,6.9219]
[1724951289286,45.59374468,144.5,144.46,6.9219]
[1724951289584,45.71923468,144.5,144.46,6.9219]
[1724951290363,52.63963468,144.5,144.46,6.9219]
[1724951291184,45.71923468,144.5,144.46,6.9219]
[1724951291488,45.59374468,144.5,144.47,6.9218]
[1724951291707,0.59374468,144.5,144.47,6.9218]
[1724951291860,0.59374468,144.5,144.47,17.3035]
[1724951292066,20.59374468,144.52,144.43,22.459]
[1724951292364,45.59374468,144.51,144.5,6.9199]
[1724951292566,45.59374468,144.51,144.49,17.3016]
[1724951292767,0.59374468,144.51,144.49,17.3016]
[1724951292980,0.59374468,144.51,144.49,24.2223]
[1724951294072,0.59374468,144.51,144.43,22.459]
[1724951294374,0.59374468,144.51,144.48,6.921]
[1724951295672,0.59374468,144.51,144.47,17.3041]
[1724951295904,0.59374468,144.51,144.5,6.9204]
[1724951296668,0.59374468,144.51,144.49,6.9207]
[1724951298882,0.59374468,144.51,144.5,6.9204]
[1724951299171,0.59374468,144.51,144.49,24.2225]
[1724951300404,0.59374468,144.51,144.46,17.3052]
[1724951301008,0.59374468,144.51,144.48,6.9213]
[1724951301578,39.67497413,144.51,144.46,17.3052]
[1724951301786,32.16102945,144.49,144.46,17.3052]
[1724951301983,0.59374468,144.48,144.46,24.2271]
[1724951302773,0.59374468,144.48,144.46,17.3052]
[1724951302978,0.59374468,144.49,144.47,6.9218]
[1724951303877,0.59374468,144.49,144.46,24.2273]
[1724951304596,0.59374468,144.49,144.46,24.2274]
[1724951305274,32.75477413,144.49,144.46,17.3052]
[1724951305582,45.59374468,144.48,144.46,17.3052]
[1724951306483,0.59374468,144.48,144.46,24.2273]
[1724951306687,20.59374468,144.5,144.46,24.2273]
[1724951308105,45.0,144.49,144.46,24.2273]
[1724951308306,0.59374468,144.48,144.46,24.2273]
[1724951310399,0.59374468,144.48,144.46,17.3052]
[1724951311107,0.59374468,144.48,144.47,6.9218]
[1724951311321,0.59374468,144.49,144.48,6.9213]
[1724951311686,0.59374468,144.49,144.47,6.9217]
[1724951312204,0.59374468,144.49,144.48,6.9213]
[1724951312618,0.59374468,144.5,144.48,6.9213]
[1724951313185,0.59374468,144.5,144.47,6.9216]
[1724951314305,64.5573018,144.48,144.39,40.1111]
[1724951314521,64.5573018,144.48,144.35,2.84954104]
[1724951314522,12.91146036,144.4,144.35,22.7978]
[1724951314809,12.91146036,144.37,144.34,6.9277]
[1724951315103,12.91146036,144.35,144.33,17.3206]
[1724951315306,12.91146036,144.35,144.33,24.2487]
[1724951315602,12.91146036,144.36,144.34,6.928]
[1724951315987,32.92797092,144.38,144.35,6.9276]
[1724951316489,32.92797092,144.38,144.36,6.9268]
[1724951317310,32.92797092,144.38,144.35,17.3182]
[1724951318390,32.92797092,144.38,144.27,57.0603]
[1724951318391,39.26132624,144.36,144.27,57.0603]
[1724951318701,32.33422624,144.34,144.27,57.0603]
[1724951318913,0.59374468,144.33,144.27,57.0603]
[1724951319416,0.59374468,144.33,144.29,17.3256]
[1724951319591,0.59374468,144.33,144.3,6.9299]
[1724951319786,0.59374468,144.33,144.29,24.2559]
[1724951320096,7.52234468,144.33,144.29,24.2559]
[1724951320307,0.59374468,144.32,144.29,24.2559]
[1724951320602,0.59374468,144.32,144.29,17.3256]
[1724951320805,32.92797092,144.32,144.29,17.3256]
[1724951323004,0.59374468,144.31,144.28,6.9309]
[1724951323197,45.59374468,144.31,144.28,6.9309]
[1724951325707,45.59374468,144.31,144.26,17.329]
[1724951325708,32.33422624,144.3,144.26,17.329]
[1724951325887,0.59374468,144.29,144.26,17.329]
[1724951327312,0.59374468,144.3,144.28,6.9309]
[1724951327516,0.59374468,144.3,144.26,17.329]
[1724951327719,0.59374468,144.3,144.29,6.9304]
[1724951328402,0.59374468,144.3,144.28,24.2576]
[1724951329212,0.59374468,144.3,144.28,17.3268]
[1724951330507,59.85807092,144.3,144.26,6.9318]
[1724951330795,0.59374468,144.29,144.26,6.9318]
[1724951332818,45.59374468,144.29,144.26,6.9318]
[1724951333225,52.52424468,144.29,144.25,24.2627]
[1724951333997,52.52424468,144.29,144.25,17.3304]
[1724951333998,7.05659,144.28,144.25,17.3304]
[1724951334196,7.05659,144.28,144.23,21.5971]
[1724951334197,45.59374468,144.27,144.23,21.5971]
[1724951334413,0.59374468,144.26,144.22,17.3339]
[1724951334608,0.59374468,144.26,144.23,6.9333]
[1724951335115,0.59374468,144.26,144.24,6.9327]
[1724951335524,0.59374468,144.26,144.25,6.9324]
[1724951335726,20.59374468,144.28,144.25,6.9324]
[1724951336600,6.9265,144.38,144.33,6.9282]
[1724951336801,6.9247,144.41,144.35,17.3179]
[1724951337113,39.37372624,144.45,144.33,53.93772624]
[1724951337431,6.9238,144.43,144.39,17.3132]
[1724951337731,6.9243,144.42,144.37,6.9265]
[1724951337914,6.9233,144.44,144.39,6.9256]
[1724951338106,6.9226,144.46,144.35,32.33422624]
[1724951338798,0.59374468,144.45,144.36,1.01347152]
[1724951339000,0.59374468,144.45,144.42,6.9241]
[1724951339836,7.51564468,144.47,144.42,6.9241]
[1724951340213,0.59374468,144.47,144.43,6.9236]
[1724951340527,7.51564468,144.47,144.42,17.3104]
[1724951340930,6.9224,144.46,144.42,17.3104]
[1724951341109,0.59374468,144.45,144.42,17.3104]
[1724951341508,20.59374468,144.45,144.39,6.9252]
[1724951341720,77.58520624,144.44,144.39,6.9252]
[1724951341908,20.59374468,144.43,144.39,6.9252]
[1724951342228,45.59374468,144.42,144.39,6.9252]
[1724951342934,0.59374468,144.42,144.41,6.9247]
[1724951343139,0.59374468,144.42,144.4,6.9251]
[1724951344228,0.59374468,144.44,144.4,6.9251]
[1724951344429,6.9242,144.42,144.38,17.3144]
[1724951344646,65.59374468,144.41,144.38,17.3144]
[1724951344840,65.59374468,144.41,144.38,24.2405]
[1724951345127,6.9228,144.45,144.4,6.9251]
[1724951345304,45.59374468,144.44,144.4,6.9251]
[1724951345504,45.59374468,144.44,144.38,17.3144]
[1724951345505,65.59374468,144.44,144.41,6.9246]
[1724951346113,20.59374468,144.44,144.41,6.9246]
[1724951346335,0.59374468,144.44,144.41,6.9246]
[1724951347411,0.59374468,144.44,144.4,17.3123]
[1724951347803,0.59374468,144.44,144.41,6.9246]
[1724951350938,7.51714468,144.44,144.4,24.2374]
[1724951351122,65.0,144.43,144.4,24.2374]
[1724951351434,0.59374468,144.42,144.4,24.2374]
[1724951351821,0.59374468,144.42,144.39,6.9255]
[1724951352020,0.59374468,144.42,144.37,17.3157]
[1724951352021,0.59374468,144.42,144.38,6.9258]
[1724951352522,6.9247,144.41,144.37,24.2422]
[1724951352725,0.59374468,144.4,144.37,24.2422]
[1724951353128,0.59374468,144.4,144.38,6.926]
[1724951353636,0.59374468,144.4,144.37,24.2422]
[1724951354022,0.59374468,144.4,144.34,34.6398]
[1724951354023,0.59374468,144.43,144.39,17.3138]
[1724951354424,0.59374468,144.43,144.4,6.925]
[1724951355240,7.51774468,144.43,144.39,24.2393]
[1724951356713,26.9243,144.42,144.39,17.3138]
[1724951357030,6.9253,144.4,144.36,24.2438]
[1724951357339,45.84472468,144.39,144.33,21.6035]
[1724951357546,45.84472468,144.39,144.32,6.9289]
[1724951357547,6.9272,144.36,144.32,6.9289]
[1724951357718,0.59374468,144.35,144.32,6.9289]
[1724951358044,0.59374468,144.37,144.3,34.6499]
[1724951358219,20.59374468,144.37,144.3,34.6499]
[1724951359036,20.59374468,144.37,144.29,22.5789]
[1724951359221,27.52064468,144.37,144.29,22.5789]
[1724951359542,27.52074468,144.37,144.31,17.3231]
[1724951359844,27.52074468,144.37,144.33,6.9284]
[1724951360328,7.05299,144.36,144.31,17.3231]
[1724951360531,0.59374468,144.35,144.32,6.9287]
[1724951361246,0.59374468,144.35,144.31,17.3231]
[1724951361420,0.59374468,144.36,144.33,17.3209]
[1724951362545,0.59374468,144.36,144.34,6.928]
[1724951363449,0.59374468,144.36,144.33,17.3209]
[1724951364244,0.59374468,144.36,144.33,24.2494]
[1724951364953,7.52104468,144.36,144.33,17.3209]
[1724951365126,45.59374468,144.35,144.33,17.3209]
[1724951365731,0.59374468,144.35,144.33,24.2493]
[1724951365935,0.59374468,144.36,144.33,24.2493]
[1724951367350,7.52084468,144.36,144.33,17.3209]
[1724951367659,0.59374468,144.35,144.33,17.3209]
[1724951367842,45.59374468,144.35,144.33,17.3209]
[1724951368758,52.52134468,144.35,144.31,6.9292]
[1724951368955,45.59374468,144.35,144.32,6.929]
[1724951369631,6.9281,144.34,144.3,24.2539]
[1724951369944,0.59374468,144.33,144.31,6.9294]
[1724951373438,20.59374468,144.34,144.32,6.929]
[1724951373656,20.59374468,144.34,144.31,6.9293]
[1724951376473,0.59374468,144.37,144.34,6.928]
[1724951376755,72.52044468,144.37,144.33,6.9284]
[1724951376948,6.9274,144.36,144.32,24.2509]
[1724951377152,72.52144468,144.35,144.32,17.3221]
[1724951377352,6.9283,144.34,144.3,6.9299]
[1724951377560,0.59374468,144.33,144.31,6.9294]
[1724951378440,0.59374468,144.34,144.32,6.9289]
[1724951378645,0.59374468,144.34,144.31,24.2528]
[1724951379542,7.52184468,144.34,144.31,17.3234]
[1724951379969,0.59374468,144.34,144.31,24.2528]
[1724951380660,39.85607092,144.34,144.3,6.9298]
[1724951381040,32.92797092,144.34,144.31,6.9295]
[1724951382158,0.59374468,144.34,144.31,6.9295]
[1724951382770,20.59374468,144.35,144.33,6.9285]
[1724951383063,0.59374468,144.37,144.34,6.928]
[1724951383281,39.25952624,144.4,144.34,17.3195]
[1724951386371,65.59374468,144.39,144.36,6.9271]
[1724951386661,72.51944468,144.39,144.35,6.9274]
[1724951387272,6.9262,144.38,144.34,24.2474]
[1724951387478,0.59374468,144.37,144.34,24.2474]
[1724951388159,7.52034468,144.37,144.34,17.3195]
[1724951388356,20.59374468,144.36,144.34,17.3195]
[1724951389154,20.59374468,144.36,144.33,22.6596]
[1724951389975,20.59374468,144.36,144.34,6.9279]
[1724951390181,0.59374468,144.36,144.33,24.2495]
[1724951391978,0.59374468,144.36,144.34,6.9277]
[1724951392274,20.59374468,144.37,144.34,6.9277]
[1724951392756,20.0,144.37,144.35,17.3186]
[1724951392960,32.92173863,144.4,144.35,17.3186]
[1724951393366,39.84703863,144.4,144.36,6.9268]
[1724951394266,20.0,144.39,144.36,6.9268]
[1724951394778,0.59374468,144.38,144.36,6.9268]
[1724951395652,0.59374468,144.38,144.35,17.3186]
[1724951395852,0.59374468,144.38,144.36,6.927]
[1724951396059,20.0,144.39,144.37,6.9265]
[1724951396262,20.59374468,144.4,144.37,6.9265]
[1724951397277,20.0,144.4,144.37,24.243]
[1724951397982,20.59374468,144.4,144.37,24.243]
[1724951400881,0.59374468,144.39,144.37,17.3165]
[1724951401182,7.51944468,144.39,144.35,22.1216]
[1724951401391,6.9262,144.38,144.34,24.2468]
[1724951401675,32.92173863,144.39,144.31,22.1311]
[1724951401676,7.52044468,144.37,144.33,6.9284]
[1724951401879,52.52044468,144.37,144.33,6.9284]
[1724951402272,7.52044468,144.37,144.34,6.928]
[1724951402673,7.52004468,144.38,144.34,6.928]
[1724951402872,20.0,144.37,144.34,6.928]
[1724951403786,20.0,144.37,144.35,6.9274]
[1724951403963,20.59374468,144.38,144.35,6.9274]
[1724951404285,27.51994468,144.38,144.34,6.9278]
[1724951405388,20.59374468,144.38,144.33,17.3212]
[1724951405560,84.25469395,144.37,144.33,24.2495]
[1724951405761,0.59374468,144.36,144.33,24.2495]
[1724951406015,13.52884605,144.36,144.33,24.2495]
[1724951406688,0.59374468,144.35,144.33,24.2495]
[1724951407087,13.52884605,144.36,144.33,24.2495]
[1724951407665,20.45604605,144.36,144.33,17.3212]
[1724951408065,13.52884605,144.36,144.33,24.2497]
[1724951408507,26.9263,144.38,144.34,6.9279]
[1724951408789,32.93510137,144.38,144.35,6.9274]
[1724951408966,0.59374468,144.4,144.32,34.6437]
[1724951409170,13.52884605,144.43,144.33,14.57121179]